fUSD/lending_fUSD_20241219
["ID","MTS","AMOUNT","RATE_DAILY","PERIOD"]
[345967652,1734574248753,-500.0,0.00024547,4]
[345967653,1734574248764,-500.0,0.00024547,4]
[345967654,1734574248774,-944.63,0.00024547,4]
[345967655,1734574248784,-535.91,0.00024547,4]
[345967656,1734574248793,-1024.87,0.00024547,4]
[345967657,1734574248803,-1526.3625468,0.00024569,2]
[345967658,1734574248813,-376.96,0.00024588,2]
[345967659,1734574248823,-2009.0,0.00024625,2]
[345967660,1734574248832,-1355.0,0.00024629,4]
[345967661,1734574248842,-500.0,0.00024629,4]
[345967662,1734574248852,-524.22,0.00024629,4]
[345967663,1734574248862,-500.0,0.00024629,4]
[345967664,1734574248872,-671.81,0.00024629,4]
[345967665,1734574248882,-521.4,0.00024629,4]
[345967666,1734574248892,-500.0,0.00024629,4]
[345967667,1734574248902,-669.08,0.00024629,4]
[345967668,1734574248913,-500.0,0.00024629,4]
[345967669,1734574248923,-500.0,0.00024629,4]
[345967670,1734574248933,-500.0,0.00024629,4]
[345967671,1734574248947,-1294.83,0.00024629,4]
[345967672,1734574248958,-500.0,0.00024629,4]
[345967673,1734574248968,-500.0,0.00024629,4]
[345967674,1734574248978,-500.0,0.00024629,4]
[345967675,1734574248988,-500.0,0.00024629,4]
[345967676,1734574248998,-708.16,0.00024629,4]
[345967677,1734574249008,-500.0,0.00024629,4]
[345967678,1734574249019,-676.67,0.00024629,4]
[345967679,1734574249029,-500.0,0.00024629,4]
[345967680,1734574249040,-500.0,0.00024629,4]
[345967681,1734574249052,-500.0,0.00024629,4]
[345967682,1734574249062,-500.0,0.00024629,4]
[345967683,1734574249072,-500.0,0.00024629,4]
[345967684,1734574249082,-500.0,0.00024629,4]
[345967685,1734574249092,-915.15,0.00024629,4]
[345967686,1734574249102,-500.0,0.00024629,4]
[345967687,1734574249111,-816.64,0.00024629,4]
[345967688,1734574249121,-500.0,0.00024629,4]
[345967689,1734574249132,-500.0,0.00024629,4]
[345967690,1734574249141,-576.81495914,0.00024629,4]
[345967691,1734574249151,-655.94,0.00024629,4]
[345967692,1734574249161,-500.0,0.00024629,4]
[345967693,1734574249171,-1066.56,0.00024629,4]
[345967694,1734574249181,-626.5,0.00024629,4]
[345967695,1734574249191,-1081.17,0.00024629,4]
[345967696,1734574249207,-225.16512168,0.00024629,4]
[345967697,1734574249219,-500.0,0.00024629,4]
[345967698,1734574249229,-500.0,0.00024629,4]
[345967699,1734574249240,-500.0,0.00024629,4]
[345967700,1734574249251,-500.0,0.00024629,4]
[345967701,1734574249261,-670.07,0.00024629,4]
[345967702,1734574249271,-312.84248122,0.00024629,4]
[345967703,1734574249282,-500.0,0.00024629,4]
[345967704,1734574249292,-500.0,0.00024629,4]
[345967705,1734574249303,-500.0,0.00024629,4]
[345967706,1734574249313,-500.0,0.00024629,4]
[345967707,1734574249323,-737.51,0.00024629,4]
[345967708,1734574249333,-500.0,0.00024629,4]
[345967709,1734574249343,-500.0,0.00024629,4]
[345967710,1734574249354,-561.32,0.00024629,4]
[345967711,1734574249366,-500.0,0.00024629,4]
[345967712,1734574249377,-454.11658597,0.00024629,4]
[345967713,1734574249388,-521.72,0.00024629,4]
[345967714,1734574249398,-748.99,0.00024629,4]
[345967715,1734574249409,-746.18,0.00024629,4]
[345967716,1734574249419,-500.0,0.00024629,4]
[345967717,1734574249430,-513.12,0.00024629,4]
[345967718,1734574249441,-592.86,0.00024629,4]
[345967719,1734574249460,-500.0,0.00024629,4]
[345967720,1734574249471,-903.96,0.00024629,4]
[345967721,1734574249482,-521.82,0.00024629,4]
[345967722,1734574249493,-500.0,0.00024629,4]
[345967723,1734574249504,-599.03,0.00024629,4]
[345967724,1734574249514,-518.91,0.00024629,4]
[345967725,1734574249525,-1303.29,0.00024629,4]
[345967726,1734574249535,-500.0,0.00024629,4]
[345967727,1734574249545,-500.0,0.00024629,4]
[345967728,1734574249555,-603.69,0.00024629,4]
[345967729,1734574249566,-368.59916673,0.00024629,4]
[345967730,1734574249576,-500.0,0.00024629,4]
[345967731,1734574249587,-676.82,0.00024629,4]
[345967732,1734574249597,-500.0,0.00024629,4]
[345967733,1734574249607,-500.0,0.00024629,4]
[345967734,1734574249617,-1552.02,0.00024629,4]
[345967735,1734574249627,-739.56,0.00024629,4]
[345967736,1734574249637,-636.5,0.00024629,4]
[345967737,1734574249647,-500.0,0.00024629,4]
[345967738,1734574249657,-500.0,0.00024629,4]
[345967739,1734574249667,-2231.72,0.00024629,4]
[345967740,1734574249678,-500.0,0.00024629,4]
[345967741,1734574249688,-1254.82,0.00024629,4]
[345967742,1734574249707,-500.0,0.00024629,4]
[345967743,1734574249719,-1910.84,0.00024629,4]
[345967744,1734574249730,-500.0,0.00024629,4]
[345967745,1734574249741,-568.45,0.00024629,4]
[345967746,1734574249752,-961.24,0.00024629,2]
[345967747,1734574249764,-500.0,0.00024629,4]
[345967748,1734574249776,-909.75,0.00024629,4]
[345967749,1734574249787,-500.0,0.00024629,4]
[345967750,1734574249797,-1769.3,0.00024629,4]
[345967751,1734574249807,-500.0,0.00024629,4]
[345967752,1734574249818,-547.56,0.00024629,4]
[345967753,1734574249829,-511.51,0.00024629,4]
[345967754,1734574249840,-500.0,0.00024629,4]
[345967755,1734574249851,-500.0,0.00024629,4]
[345967756,1734574249862,-500.0,0.00024629,4]
[345967757,1734574249872,-632.58,0.00024629,4]
[345967758,1734574249882,-618.08,0.00024629,4]
[345967759,1734574249893,-500.0,0.0002463,4]
[345967760,1734574249903,-500.0,0.0002463,4]
[345967761,1734574249913,-524.93,0.0002463,4]
[345967762,1734574249923,-500.0,0.0002463,4]
[345967763,1734574249933,-500.0,0.0002463,4]
[345967764,1734574249945,-655.54,0.0002463,4]
[345967765,1734574249957,-500.0,0.0002463,4]
[345967766,1734574249967,-500.0,0.00024657,4]
[345967767,1734574249978,-500.0,0.00024657,4]
[345967768,1734574249988,-500.0,0.00024657,4]
[345967769,1734574249998,-827.74,0.00024657,4]
[345967770,1734574250009,-1508.96,0.00024657,4]
[345967771,1734574250019,-761.9,0.00024657,4]
[345967772,1734574250030,-1237.84,0.00024657,4]
[345967773,1734574250044,-987.29,0.00024657,4]
[345967774,1734574250054,-500.0,0.00024657,4]
[345967775,1734574250064,-701.7,0.00024657,4]
[345967776,1734574250073,-1107.23,0.00024657,4]
[345967777,1734574250085,-745.89,0.00024657,4]
[345967778,1734574250094,-717.04,0.00024657,4]
[345967779,1734574250103,-2986.4,0.00024657,4]
[345967780,1734574250114,-1436.21,0.00024657,4]
[345967781,1734574250124,-500.0,0.00024657,4]
[345967782,1734574250133,-722.69,0.00024657,4]
[345967783,1734574250142,-1423.55,0.00024657,4]
[345967784,1734574250151,-500.0,0.00024657,4]
[345967785,1734574250161,-568.49,0.00024657,4]
[345967786,1734574250172,-1872.77,0.00024657,4]
[345967787,1734574250182,-500.0,0.00024657,4]
[345967788,1734574250191,-603.0,0.00024658,2]
[345967789,1734574250201,-1000.0,0.00024658,2]
[345967790,1734574250211,-150.0,0.00024658,2]
[345967791,1734574250221,-975.22176,0.0002466,2]
[345967792,1734574250232,-200.0,0.000247,2]
[345967793,1734574250243,-2170.28,0.000247,2]
[345967794,1734574250253,-498.66,0.00024714,2]
[345967795,1734574250263,-500.0,0.0002472,4]
[345967796,1734574250274,-937.05,0.0002472,4]
[345967797,1734574250284,-519.13,0.0002472,4]
[345967798,1734574250294,-568.45,0.0002472,4]
[345967799,1734574250304,-1277.82,0.0002472,4]
[345967800,1734574250314,-500.0,0.0002472,4]
[345967801,1734574250324,-500.0,0.0002472,4]
[345967802,1734574250334,-500.0,0.0002472,4]
[345967803,1734574250344,-895.05,0.0002472,4]
[345967804,1734574250354,-1671.52,0.0002472,4]
[345967805,1734574250364,-546.65,0.0002472,4]
[345967806,1734574250374,-150.0,0.00024743,2]
[345967807,1734574250384,-150.0,0.00024745,2]
[345967808,1734574250394,-1342.0,0.0002475,2]
[345967809,1734574250404,-150.0,0.00024764,2]
[345967810,1734574250414,-150.0,0.00024773,2]
[345967811,1734574250424,-150.0,0.00024779,2]
[345967812,1734574250434,-1002.16,0.000248,6]
[345967813,1734574250443,-4975.41091315,0.000248,2]
[345967814,1734574250453,-31232.82045539,0.000248,2]
[345967815,1734574250463,-607.485414,0.000248,2]
[345967816,1734574250472,-2720.0,0.000248,2]
[345967817,1734574250483,-150.0,0.00024802,2]
[345967818,1734574250492,-187.31,0.00024805,2]
[345967819,1734574250502,-150.0,0.00024808,2]
[345967820,1734574250512,-928.04,0.0002482,4]
[345967821,1734574250522,-988.37,0.0002482,4]
[345967822,1734574250532,-534.51,0.0002482,4]
[345967823,1734574250541,-500.0,0.0002482,4]
[345967824,1734574250551,-500.0,0.0002482,4]
[345967825,1734574250560,-1074.85,0.0002482,4]
[345967826,1734574250570,-715.6,0.0002482,4]
[345967827,1734574250580,-2704.330555,0.0002482,4]
[345967828,1734574250590,-4085.489534,0.0002482,4]
[345967829,1734574250600,-186.515069,0.0002482,4]
[345967830,1734574250611,-979.42,0.0002482,4]
[345967831,1734574250621,-1310.15,0.0002482,4]
[345967832,1734574250630,-536.4,0.0002482,4]
[345967833,1734574250640,-500.0,0.0002482,4]
[345967834,1734574250650,-2331.11,0.0002482,4]
[345967835,1734574250660,-724.97,0.0002482,4]
[345967836,1734574250670,-765.72,0.0002482,4]
[345967837,1734574250679,-694.54,0.0002482,4]
[345967838,1734574250688,-448.037134,0.0002482,4]
[345967839,1734574250698,-298.723721,0.0002482,4]
[345967840,1734574250708,-545.44,0.0002482,4]
[345967841,1734574250717,-500.0,0.0002482,4]
[345967842,1734574250727,-500.0,0.0002482,4]
[345967843,1734574250736,-500.0,0.0002482,4]
[345967844,1734574250746,-847.36,0.0002482,4]
[345967845,1734574250756,-568.93,0.0002482,4]
[345967846,1734574250766,-1298.83,0.0002482,4]
[345967847,1734574250775,-1323.44,0.0002482,4]
[345967848,1734574250784,-5031.8,0.0002482,4]
[345967849,1734574250794,-298.723721,0.0002482,4]
[345967850,1734574250803,-500.0,0.0002482,4]
[345967851,1734574250813,-448.037133,0.0002482,4]
[345967852,1734574250823,-725.97,0.0002482,4]
[345967853,1734574250832,-500.0,0.0002482,4]
[345967854,1734574250842,-1345.04,0.0002482,4]
[345967855,1734574250852,-3520.85,0.0002482,4]
[345967856,1734574250862,-657.32,0.0002482,4]
[345967857,1734574250872,-500.0,0.0002482,4]
[345967858,1734574250882,-1000.0,0.0002482,4]
[345967859,1734574250892,-500.0,0.0002482,4]
[345967860,1734574250902,-1071.9,0.0002482,4]
[345967861,1734574250911,-500.0,0.0002482,4]
[345967862,1734574250921,-500.0,0.00024821,4]
[345967863,1734574250931,-500.0,0.00024821,4]
[345967864,1734574250941,-500.0,0.00024821,4]
[345967865,1734574250966,-500.0,0.00024821,4]
[345967866,1734574250976,-500.0,0.00024821,4]
[345967867,1734574250985,-511.13553812,0.00024821,4]
[345967868,1734574250995,-452.44777517,0.00024821,4]
[345967869,1734574251005,-500.0,0.00024821,4]
[345967870,1734574251015,-650.16,0.00024821,4]
[345967871,1734574251024,-500.0,0.00024821,4]
[345967872,1734574251035,-455.1413998,0.00024821,4]
[345967873,1734574251050,-500.0,0.00024821,4]
[345967874,1734574251059,-500.0,0.00024821,4]
[345967875,1734574251071,-500.0,0.00024821,4]
[345967876,1734574251082,-500.0,0.00024821,4]
[345967877,1734574251091,-500.0,0.00024821,4]
[345967878,1734574251101,-500.0,0.00024821,4]
[345967879,1734574251111,-500.0,0.00024821,4]
[345967880,1734574251121,-500.0,0.00024821,4]
[345967881,1734574251132,-500.0,0.00024821,4]
[345967882,1734574251142,-500.0,0.00024821,4]
[345967883,1734574251152,-500.0,0.00024821,4]
[345967884,1734574251162,-1310.8,0.00024821,4]
[345967885,1734574251172,-500.0,0.00024821,4]
[345967886,1734574251181,-500.0,0.00024821,4]
[345967887,1734574251191,-500.0,0.00024821,4]
[345967888,1734574251201,-1375.39,0.00024821,4]
[345967889,1734574251211,-167.57517725,0.00024821,4]
[345967890,1734574251220,-500.0,0.00024821,4]
[345967891,1734574251230,-500.0,0.00024821,4]
[345967892,1734574251240,-500.0,0.00024821,4]
[345967893,1734574251248,-500.0,0.00024821,4]
[345967894,1734574251258,-500.0,0.00024821,4]
[345967895,1734574251267,-500.0,0.00024821,4]
[345967896,1734574251277,-530.57,0.00024821,4]
[345967897,1734574251286,-500.0,0.00024821,4]
[345967898,1734574251296,-500.0,0.00024821,4]
[345967899,1734574251306,-500.0,0.00024821,4]
[345967900,1734574251472,-500.0,0.00024821,4]
[345967901,1734574251483,-500.0,0.00024821,4]
[345967902,1734574251493,-676.51,0.00024821,4]
[345967903,1734574251503,-500.0,0.00024821,4]
[345967904,1734574251514,-500.0,0.00024821,4]
[345967905,1734574251523,-1513.74,0.00024821,4]
[345967906,1734574251532,-500.0,0.00024821,4]
[345967907,1734574251542,-500.0,0.00024821,4]
[345967908,1734574251551,-500.0,0.00024821,4]
[345967909,1734574251562,-500.0,0.00024821,4]
[345967910,1734574251572,-343.27562562,0.00024821,4]
[345967911,1734574251582,-500.0,0.00024821,4]
[345967912,1734574251591,-500.0,0.00024821,4]
[345967913,1734574251601,-687.41,0.00024821,4]
[345967914,1734574251610,-571.07895847,0.00024821,4]
[345967915,1734574251620,-500.0,0.00024821,4]
[345967916,1734574251629,-527.71,0.00024821,4]
[345967917,1734574251639,-850.39,0.00024821,4]
[345967918,1734574251649,-500.0,0.00024821,4]
[345967919,1734574251659,-508.64,0.00024821,4]
[345967920,1734574251669,-978.39,0.00024821,4]
[345967921,1734574251679,-500.0,0.00024821,4]
[345967922,1734574251689,-500.0,0.00024821,4]
[345967923,1734574251698,-500.0,0.00024821,4]
[345967924,1734574251708,-1925.0,0.00024821,4]
[345967925,1734574251717,-500.0,0.00024821,4]
[345967926,1734574251728,-632.81,0.00024821,4]
[345967927,1734574251738,-1000.0,0.00024821,5]
[345967928,1734574251748,-500.0,0.00024821,4]
[345967929,1734574251757,-500.0,0.00024821,4]
[345967930,1734574251767,-500.0,0.00024821,4]
[345967931,1734574251777,-541.01,0.00024821,4]
[345967932,1734574251786,-500.0,0.00024821,4]
[345967933,1734574251795,-648.95,0.00024821,4]
[345967934,1734574251804,-500.0,0.00024821,4]
[345967935,1734574251814,-500.0,0.00024821,4]
[345967936,1734574251824,-500.0,0.00024821,4]
[345967937,1734574251834,-500.0,0.00024821,4]
[345967938,1734574251844,-944.63,0.00024821,4]
[345967939,1734574251854,-535.91,0.00024821,4]
[345967940,1734574251864,-1024.87,0.00024821,4]
[345967941,1734574251874,-150.0,0.00024832,2]
[345967942,1734574251884,-473.54,0.00024842,2]
[345967943,1734574251894,-150.0,0.00024842,2]
[345967944,1734574251904,-150.0,0.00024847,2]
[345967945,1734574251914,-260.99709952,0.00024855,2]
[345967946,1734574251923,-150.0,0.00024856,2]
[345967947,1734574251933,-150.0,0.00024866,2]
[345967948,1734574251943,-150.0,0.00024874,2]
[345967949,1734574251953,-150.0,0.00024875,2]
[345967950,1734574251963,-150.0,0.0002488,2]
[345967951,1734574251972,-150.0,0.00024881,2]
[345967952,1734574251982,-150.0,0.00024881,2]
[345967953,1734574251992,-150.0,0.00024888,2]
[345967954,1734574252002,-150.0,0.0002489,2]
[345967955,1734574252012,-150.0,0.00024892,2]
[345967956,1734574252022,-150.0,0.00024894,2]
[345967957,1734574252033,-217.25278296,0.00024894,2]
[345967958,1734574252047,-5706.65894905,0.00024898,4]
[345967959,1734574252062,-820.46669827,0.00024898,4]
[345967960,1734574252072,-819.6965,0.000249,2]
[345967961,1734574252083,-500.0,0.000249,2]
[345967962,1734574252092,-500.0,0.000249,2]
[345967963,1734574252103,-500.0,0.000249,2]
[345967964,1734574252115,-500.0,0.000249,2]
[345967965,1734574252129,-500.0,0.000249,2]
[345967966,1734574252144,-500.0,0.000249,2]
[345967967,1734574252153,-500.0,0.000249,2]
[345967968,1734574252163,-500.0,0.000249,2]
[345967969,1734574252172,-500.0,0.000249,2]
[345967970,1734574252182,-500.0,0.000249,2]
[345967971,1734574252192,-500.0,0.000249,2]
[345967972,1734574252201,-500.0,0.000249,2]
[345967973,1734574252211,-500.0,0.000249,2]
[345967974,1734574252220,-500.0,0.000249,2]
[345967975,1734574252230,-500.0,0.000249,2]
[345967976,1734574252239,-500.0,0.000249,2]
[345967977,1734574252249,-500.0,0.000249,2]
[345967978,1734574252258,-500.0,0.000249,2]
[345967979,1734574252268,-500.0,0.000249,2]
[345967980,1734574252277,-500.0,0.000249,2]
[345967981,1734574252287,-500.0,0.000249,2]
[345967982,1734574252297,-500.0,0.000249,2]
[345967983,1734574252307,-500.0,0.000249,2]
[345967984,1734574252317,-500.0,0.000249,2]
[345967985,1734574252327,-500.0,0.000249,2]
[345967986,1734574252336,-500.0,0.000249,2]
[345967987,1734574252346,-500.0,0.000249,2]
[345967988,1734574252355,-500.0,0.000249,2]
[345967989,1734574252366,-500.0,0.000249,2]
[345967990,1734574252376,-500.0,0.000249,2]
[345967991,1734574252385,-500.0,0.000249,2]
[345967992,1734574252395,-500.0,0.000249,2]
[345967993,1734574252405,-500.0,0.000249,2]
[345967994,1734574252415,-500.0,0.000249,2]
[345967995,1734574252424,-500.0,0.000249,2]
[345967996,1734574252434,-500.0,0.000249,2]
[345967997,1734574252443,-500.0,0.000249,2]
[345967998,1734574252453,-500.0,0.000249,2]
[345967999,1734574252463,-500.0,0.000249,2]
[345968000,1734574252472,-500.0,0.000249,2]
[345968001,1734574252482,-500.0,0.000249,2]
[345968002,1734574252492,-500.0,0.000249,2]
[345968003,1734574252501,-500.0,0.000249,2]
[345968004,1734574252512,-500.0,0.000249,2]
[345968005,1734574252522,-500.0,0.000249,2]
[345968006,1734574252532,-500.0,0.000249,2]
[345968007,1734574252542,-500.0,0.000249,2]
[345968008,1734574252552,-500.0,0.000249,2]
[345968009,1734574252562,-500.0,0.000249,2]
[345968010,1734574252572,-500.0,0.000249,2]
[345968011,1734574252581,-500.0,0.000249,2]
[345968012,1734574252591,-500.0,0.000249,2]
[345968013,1734574252600,-500.0,0.000249,2]
[345968014,1734574252611,-500.0,0.000249,2]
[345968015,1734574252620,-500.0,0.000249,2]
[345968016,1734574252630,-500.0,0.000249,2]
[345968017,1734574252639,-500.0,0.000249,2]
[345968018,1734574252649,-500.0,0.000249,2]
[345968019,1734574252658,-500.0,0.000249,2]
[345968020,1734574252668,-500.0,0.000249,2]
[345968021,1734574252678,-500.0,0.000249,2]
[345968022,1734574252688,-500.0,0.000249,2]
[345968023,1734574252698,-500.0,0.000249,2]
[345968024,1734574252708,-500.0,0.000249,2]
[345968025,1734574252717,-500.0,0.000249,2]
[345968026,1734574252727,-500.0,0.000249,2]
[345968027,1734574252736,-500.0,0.000249,2]
[345968028,1734574252745,-500.0,0.000249,2]
[345968029,1734574252755,-500.0,0.000249,2]
[345968030,1734574252765,-500.0,0.000249,2]
[345968031,1734574252774,-500.0,0.000249,2]
[345968032,1734574252784,-500.0,0.000249,2]
[345968033,1734574252793,-500.0,0.000249,2]
[345968034,1734574252803,-500.0,0.000249,2]
[345968035,1734574252813,-500.0,0.000249,2]
[345968036,1734574252823,-500.0,0.000249,2]
[345968037,1734574252832,-500.0,0.000249,2]
[345968038,1734574252842,-500.0,0.000249,2]
[345968039,1734574252851,-500.0,0.000249,2]
[345968040,1734574252860,-500.0,0.000249,2]
[345968041,1734574252870,-500.0,0.000249,2]
[345968042,1734574252880,-500.0,0.000249,2]
[345968043,1734574252890,-500.0,0.000249,2]
[345968044,1734574252899,-500.0,0.000249,2]
[345968045,1734574252909,-500.0,0.000249,2]
[345968046,1734574252918,-500.0,0.000249,2]
[345968047,1734574252928,-500.0,0.000249,2]
[345968048,1734574252937,-500.0,0.000249,2]
[345968049,1734574252947,-500.0,0.000249,2]
[345968050,1734574252957,-500.0,0.000249,2]
[345968051,1734574252966,-500.0,0.000249,2]
[345968052,1734574252975,-500.0,0.000249,2]
[345968053,1734574252984,-500.0,0.000249,2]
[345968054,1734574252994,-500.0,0.000249,2]
[345968055,1734574253004,-500.0,0.000249,2]
[345968056,1734574253013,-500.0,0.000249,2]
[345968057,1734574253023,-500.0,0.000249,2]
[345968058,1734574253032,-500.0,0.000249,2]
[345968059,1734574253046,-500.0,0.000249,2]
[345968060,1734574253055,-500.0,0.000249,2]
[345968061,1734574253065,-500.0,0.000249,2]
[345968062,1734574253074,-500.0,0.000249,2]
[345968063,1734574253085,-500.0,0.000249,2]
[345968064,1734574253095,-500.0,0.000249,2]
[345968065,1734574253104,-500.0,0.000249,2]
[345968066,1734574253114,-500.0,0.000249,2]
[345968067,1734574253123,-500.0,0.000249,2]
[345968068,1734574253133,-500.0,0.000249,2]
[345968069,1734574253143,-500.0,0.000249,2]
[345968070,1734574253154,-500.0,0.000249,2]
[345968071,1734574253163,-500.0,0.000249,2]
[345968072,1734574253173,-500.0,0.000249,2]
[345968073,1734574253182,-500.0,0.000249,2]
[345968074,1734574253191,-500.0,0.000249,2]
[345968075,1734574253201,-500.0,0.000249,2]
[345968076,1734574253210,-500.0,0.000249,2]
[345968077,1734574253220,-500.0,0.000249,2]
[345968078,1734574253233,-500.0,0.000249,2]
[345968079,1734574253242,-500.0,0.000249,2]
[345968080,1734574253251,-500.0,0.000249,2]
[345968081,1734574253260,-500.0,0.000249,2]
[345968082,1734574253270,-500.0,0.000249,2]
[345968083,1734574253280,-500.0,0.000249,2]
[345968084,1734574253289,-500.0,0.000249,2]
[345968085,1734574253299,-500.0,0.000249,2]
[345968086,1734574253309,-500.0,0.000249,2]
[345968087,1734574253319,-500.0,0.000249,2]
[345968088,1734574253329,-500.0,0.000249,2]
[345968089,1734574253338,-649.28,0.000249,31]
[345968090,1734574253348,-500.0,0.000249,2]
[345968091,1734574253357,-649.28,0.000249,31]
[345968092,1734574253367,-649.28,0.000249,31]
[345968093,1734574253376,-649.28,0.000249,31]
[345968094,1734574253385,-649.28,0.000249,31]
[345968095,1734574253395,-649.28,0.000249,31]
[345968096,1734574253405,-649.28,0.000249,31]
[345968097,1734574253414,-649.28,0.000249,31]
[345968098,1734574253424,-649.28,0.000249,31]
[345968099,1734574253434,-649.28,0.000249,31]
[345968100,1734574253443,-649.28,0.000249,31]
[345968101,1734574253452,-649.28,0.000249,31]
[345968102,1734574253462,-649.28,0.000249,31]
[345968103,1734574253472,-649.28,0.000249,31]
[345968104,1734574253482,-649.28,0.000249,31]
[345968105,1734574253491,-500.0,0.000249,2]
[345968106,1734574253501,-649.28,0.000249,31]
[345968107,1734574253510,-500.0,0.000249,2]
[345968108,1734574253519,-500.0,0.000249,2]
[345968109,1734574253529,-500.0,0.000249,2]
[345968110,1734574253538,-500.0,0.000249,2]
[345968111,1734574253548,-500.0,0.000249,2]
[345968112,1734574253557,-500.0,0.000249,2]
[345968113,1734574253566,-500.0,0.000249,2]
[345968114,1734574253575,-500.0,0.000249,2]
[345968115,1734574253585,-500.0,0.000249,2]
[345968116,1734574253594,-500.0,0.000249,2]
[345968117,1734574253604,-500.0,0.000249,2]
[345968118,1734574253614,-500.0,0.000249,2]
[345968119,1734574253623,-500.0,0.000249,2]
[345968120,1734574253632,-500.0,0.000249,2]
[345968121,1734574253642,-500.0,0.000249,2]
[345968122,1734574253651,-500.0,0.000249,2]
[345968123,1734574253660,-500.0,0.000249,2]
[345968124,1734574253670,-500.0,0.000249,2]
[345968125,1734574253679,-500.0,0.000249,2]
[345968126,1734574253689,-500.0,0.000249,2]
[345968127,1734574253699,-500.0,0.000249,2]
[345968128,1734574253708,-500.0,0.000249,2]
[345968129,1734574253718,-500.0,0.000249,2]
[345968130,1734574253728,-500.0,0.000249,2]
[345968131,1734574253738,-500.0,0.000249,2]
[345968132,1734574253747,-500.0,0.000249,2]
[345968133,1734574253756,-500.0,0.000249,2]
[345968134,1734574253766,-500.0,0.000249,2]
[345968135,1734574253776,-500.0,0.000249,2]
[345968136,1734574253787,-500.0,0.000249,2]
[345968137,1734574253796,-500.0,0.000249,2]
[345968138,1734574253806,-500.0,0.000249,2]
[345968139,1734574253815,-500.0,0.000249,2]
[345968140,1734574253825,-500.0,0.000249,2]
[345968141,1734574253834,-500.0,0.000249,2]
[345968142,1734574253844,-500.0,0.000249,2]
[345968143,1734574253854,-500.0,0.000249,2]
[345968144,1734574253864,-500.0,0.000249,2]
[345968145,1734574253873,-500.0,0.000249,2]
[345968146,1734574253883,-500.0,0.000249,2]
[345968147,1734574253892,-500.0,0.000249,2]
[345968148,1734574253901,-500.0,0.000249,2]
[345968149,1734574253910,-500.0,0.000249,2]
[345968150,1734574253961,-500.0,0.000249,2]
[345968151,1734574253971,-500.0,0.000249,2]